fUSD/lending_fUSD_20251028
["ID","MTS","AMOUNT","RATE_DAILY","PERIOD"]
[392572222,1761682232854,-500.0,0.00028246,2]
[392572223,1761682232864,-500.0,0.00028246,2]
[392572224,1761682232874,-500.0,0.00028246,2]
[392572225,1761682232883,-500.0,0.00028246,2]
[392572226,1761682232893,-307.45886692,0.000289,7]
[392572227,1761682232907,-500.0,0.000289,7]
[392572228,1761682232922,-500.0,0.000289,7]
[392572229,1761682232932,-500.0,0.000289,7]
[392572230,1761682232942,-183.83,0.000289,7]
[392572231,1761682232953,-159.26,0.00028982,30]
[392572232,1761682232964,-404.78632694,0.00029031,2]
[392572234,1761682232974,-200.0,0.00029085,2]
[392572235,1761682232985,-420.0,0.00029085,2]
[392572236,1761682232995,-300.0,0.00029085,2]
[392572238,1761682233005,-614.83274627,0.00029114,2]
[392572240,1761682233015,-500.0,0.00029114,2]
[392572242,1761682233027,-496.176383,0.00029114,2]
[392572244,1761682233037,-574.12855637,0.00029114,2]
[392572246,1761682233047,-503.7115151,0.0002913,2]
[392572248,1761682233057,-6351.21077353,0.0002913,2]
[392572250,1761682233068,-10472.60620844,0.00029131,2]
[392572253,1761682233080,-20201.9849457,0.00029131,2]
[392572754,1761682237924,-500.0,0.00028246,2]
[392572757,1761682237937,-500.0,0.00028246,2]
[392572759,1761682237947,-500.0,0.00028246,2]
[392572761,1761682237957,-279.46414471,0.00028246,2]
[392572762,1761682237967,-500.0,0.00028246,2]
[392572764,1761682237977,-500.0,0.00028246,2]
[392572766,1761682237987,-500.0,0.00028246,2]
[392572769,1761682237996,-500.0,0.00028246,2]
[392572771,1761682238006,-500.0,0.00028246,2]
[392572773,1761682238015,-500.0,0.00028246,2]
[392572774,1761682238025,-500.0,0.00028246,2]
[392572776,1761682238035,-375.03585529,0.00028246,2]
[392572779,1761682238047,-124.96414471,0.00028246,2]
[392572781,1761682238056,-500.0,0.00028246,2]
[392572783,1761682238065,-500.0,0.00028246,2]
[392572785,1761682238074,-500.0,0.00028246,2]
[392572787,1761682238084,-500.0,0.00028246,2]
[392572789,1761682238094,-500.0,0.00028246,2]
[392572791,1761682238103,-445.03586529,0.00028246,2]
[392572793,1761682238115,-54.96413471,0.00028246,2]
[392572795,1761682238125,-500.0,0.00028246,2]
[392572797,1761682238135,-500.0,0.00028246,2]
[392572799,1761682238144,-322.03586529,0.00028246,2]
[392572803,1761682238183,-177.96413471,0.00028246,2]
[392572805,1761682238192,-500.0,0.00028246,2]
[392572807,1761682238203,-3894.96527695,0.00029131,2]
[392572811,1761682238227,-575.80454067,0.00029131,2]
[392572814,1761682238246,-14381.78100031,0.00029131,2]
[392573015,1761682240087,-949.8822578,0.00029131,2]
[392573044,1761682240353,-568.32776,0.00029131,2]
[392573051,1761682240409,-1694.46908242,0.00029131,2]
[392573056,1761682240444,-11294.54754265,0.00029131,2]
[392573360,1761682243230,-87.0940939,0.0002833,2]
[392573363,1761682243242,-945.39175942,0.0002833,2]
[392573365,1761682243252,-9422.71475656,0.00029131,2]
[392573367,1761682243261,-1200.0,0.00029214,2]
[392573369,1761682243270,-3172.25732324,0.00029339,2]
[392573371,1761682243280,-3172.25732319,0.00029416,2]
[392573373,1761682243289,-950.21,0.00029439,2]
[392573375,1761682243298,-1367.27,0.00029439,2]
[392573377,1761682243307,-862.40233327,0.00029473,2]
[392573379,1761682243316,-1533.49650432,0.00029494,2]
[392573381,1761682243327,-492.258339,0.00029494,2]
[392573383,1761682243338,-1146.50247987,0.00029494,2]
[392573385,1761682243348,-1013.0,0.000295,2]
[392573387,1761682243358,-37.31849355,0.0002957,2]
[392573651,1761682246066,-1534.09838463,0.0002957,2]
[392573653,1761682246078,-414.68976326,0.0002957,2]
[392573655,1761682246089,-326.37499267,0.0002957,2]
[392573659,1761682246111,-187.51836589,0.0002957,2]
[392573661,1761682246121,-950.20689411,0.0002957,2]
[392573666,1761682246156,-1139.63941167,0.0002957,2]
[392573668,1761682246170,-3554.72107619,0.0002957,2]
[392573939,1761682267058,300.0,0.00030137,120]
[392573945,1761682281553,251.3783172,0.000315,120]
[392573953,1761682639705,180.53,0.000315,120]
[392573955,1761682728153,150.5,0.0002989,120]
[392573956,1761682728607,181.5,0.0002988,120]
[392573957,1761682826584,1014.40195,0.0003,120]
[392573960,1761683108070,156600.0,0.00015,2]
[392573961,1761683108107,19463.18,0.00015,2]
[392573962,1761683108144,100000.0,0.00015,2]
[392573963,1761683108172,100000.0,0.00015,2]
[392573964,1761683108199,100000.0,0.00015,2]
[392573965,1761683108226,100000.0,0.00015,2]
[392573966,1761683108879,-392.13894152,0.00015,2]
[392573967,1761683111440,-499.9843703,0.00015,2]
[392573968,1761683114883,-168.0,0.00015,2]
[392573969,1761683116735,-522.0,0.00015,2]
[392573970,1761683120317,-250.0,0.00015,2]
[392573971,1761683139370,-699.08,0.00015,2]
[392573973,1761683142062,-314.51,0.00015,2]
[392573974,1761683144988,-303.70130856,0.00015,2]
[392573975,1761683147069,-257.89217977,0.00015,2]
[392573976,1761683149475,-308.97,0.00015,2]
[392573977,1761683151115,-225.19,0.00015,2]
[392573978,1761683153354,-1123.82014332,0.00015,2]
[392573979,1761683169108,-7916.45014577,0.00015,2]
[392573980,1761683173919,-474.54591087,0.00015,2]
[392573981,1761683176015,-699.08,0.00015,2]
[392573982,1761683177603,-242.4086259,0.00015,2]
[392573983,1761683181594,-193.94,0.00015,2]
[392573984,1761683183769,-699.08,0.00015,2]
[392573986,1761683186877,-857.84514295,0.00015,2]
[392573987,1761683189329,-234.15485705,0.00015,2]
[392573988,1761683194210,-399.08,0.00014999,2]
[392573990,1761683214603,-97.49884785,0.00014999,2]
[392573991,1761683214625,-377.88054898,0.00014999,2]
[392573992,1761683214646,-29.62060317,0.00014999,2]
[392573993,1761683217423,-329.97438483,0.00014999,2]
[392573994,1761683217450,-257.02561517,0.00014999,2]
[392573995,1761683219598,-242.97438483,0.00014999,2]
[392573996,1761683219620,-513.13554452,0.00014999,2]
[392573997,1761683219871,-160.86546302,0.00014999,2]
[392573998,1761683219900,-175.02460763,0.00014999,2]
[392573999,1761683221761,-300.0,0.00014998,2]
[392574000,1761683221783,-111.55530568,0.00014998,2]
[392574001,1761683223428,-38.44469432,0.00014998,2]
[392574002,1761683223455,-261.55530568,0.00014999,2]
[392574003,1761683226470,-287.52469432,0.00014998,2]
[392574004,1761683230407,-12.47530568,0.00014998,2]
[392574005,1761683230438,-63.42008669,0.00014999,2]
[392574006,1761683230463,-174.10460763,0.00014999,2]
[392574007,1761683231922,-250.0,0.00014999,2]
[392574008,1761683234907,-75.89539237,0.00014999,2]
[392574009,1761683234935,-224.10460763,0.00014999,2]
[392574010,1761683236965,-275.89539237,0.00014999,2]
[392574011,1761683236993,-43.45460763,0.00014999,2]
[392574012,1761683239579,-153.20748174,0.00014999,2]
[392574013,1761683241921,1032.0,0.000315,120]
[392574014,1761683246205,-193.94,0.00014999,2]
[392574017,1761683252239,-109.39791063,0.00014999,2]
[392574018,1761683252264,-500.0,0.00014999,2]
[392574019,1761683252287,-89.68208937,0.00014999,2]
[392574020,1761683257509,-152.61523579,0.00014999,2]
[392574030,1761683274089,-1092.0,0.00014998,2]
[392574033,1761683276663,-108.0,0.00014998,2]
[392574034,1761683276687,-211.35,0.00014999,2]
[392574035,1761683278366,-46.35267484,0.00014999,2]
[392574036,1761683278390,-500.0,0.00014999,2]
[392574037,1761683278414,-80.75954798,0.00014999,2]
[392574039,1761683282334,-201.63108115,0.00014999,2]
[392574042,1761683285572,-217.60937087,0.00014999,2]
[392574043,1761683285608,-446.04562913,0.00014999,2]
[392574044,1761683288281,-53.95437087,0.00014999,2]
[392574045,1761683288306,-397.34727765,0.00014999,2]
[392574057,1761683301504,634.999999,0.000315,120]
[392574059,1761683304116,-501.3157321,0.00014899,2]
[392574060,1761683304428,713.0,0.000315,120]
[392574061,1761683306844,-165.60028277,0.00014899,2]
[392574062,1761683306871,-102.65272235,0.00014999,2]
[392574063,1761683306897,-289.74699488,0.00014999,2]
[392574064,1761683308822,-160.0,0.00014999,2]
[392574065,1761683311916,-50.25300512,0.00014999,2]
[392574066,1761683311941,-439.71109867,0.00014999,2]
[392574067,1761683311967,-500.0,0.00014999,2]
[392574068,1761683311992,-346.03589621,0.00014999,2]
[392574071,1761683313517,-153.96410379,0.00014999,2]
[392574072,1761683313542,-500.0,0.00014999,2]
[392574073,1761683313566,-500.0,0.00014999,2]
[392574074,1761683313589,-500.0,0.00014999,2]
[392574075,1761683313613,-500.0,0.00014999,2]
[392574076,1761683313633,-666.0,0.00014999,2]
[392574077,1761683313656,-9620.89603675,0.00015,2]
[392574080,1761683315962,-629.57248526,0.00015,2]
[392574085,1761683319272,-1399.0,0.00015,2]
[392574086,1761683322159,-796.97167199,0.00015,2]
[392574087,1761683324534,-1009.19611799,0.00015,2]
[392574089,1761683326532,-159.37123418,0.00015,2]
[392574090,1761683330019,-354.77009464,0.00015,2]
[392574091,1761683332115,-261.02832801,0.00015,2]
[392574092,1761683333708,-500.0,0.00015,2]
[392574093,1761683335185,-180.8195341,0.00015,2]
[392574094,1761683337860,-911.1804659,0.00015,2]
[392574097,1761683340204,-653.8972311,0.00015,2]
[392574102,1761683342403,-358.73776947,0.00015,2]
[392574107,1761683344660,-220.29779578,0.00015,2]
[392574108,1761683346535,-20956.0464452,0.00015,2]
[392574112,1761683364724,-250.0,0.00015,2]
[392574114,1761683367575,-195.0,0.00015,2]
[392574115,1761683369212,-489.17961144,0.00015,2]
[392574116,1761683371605,-796.97167199,0.00015,2]
[392574117,1761683374095,-168.0,0.00015,2]
[392574118,1761683377018,-420.0,0.00015,2]
[392574120,1761683390245,2094.6766247,0.00031506,120]
[392574121,1761683394114,-410.59348833,0.00014985,2]
[392574122,1761683394141,-4022.00730976,0.00015,2]
[392574123,1761683395724,-5515.0,0.00015,2]
[392574124,1761683398039,-1000.0,0.00015,2]
[392574125,1761683399696,-153.17168369,0.00015,2]
[392574127,1761683402057,-300.0,0.00014999,2]
[392574128,1761683402264,-150.0,0.00014999,2]
[392574129,1761683402287,-1230.0,0.00015,2]
[392574130,1761683402601,1000.0,0.0002,7]
[392574131,1761683404823,-5148.90456408,0.00015,2]
[392574132,1761683407449,-1091.42916511,0.00015,2]
[392574133,1761683424078,-796.97167199,0.00015,2]
[392574134,1761683426864,-208.27963981,0.0001499,2]
[392574135,1761683427081,-288.69203218,0.00015,2]
[392574136,1761683428527,-679.4008371,0.00015,2]
[392574139,1761683431968,-922.25681195,0.00015,2]
[392574165,1761683432214,-11279.51,0.00015,2]
[392574166,1761683432273,-15280.76689019,0.00015,2]
[392574167,1761683432285,-7455.00722206,0.00015,2]
[392574168,1761683432332,-12000.0,0.00015,2]
[392574169,1761683432343,-28695.01256857,0.00015,2]
[392574170,1761683432354,-1305.0,0.00015,2]
[392574171,1761683432365,-6737.16920589,0.00015,2]
[392574172,1761683432376,-1134.7866,0.00015,2]
[392574173,1761683432415,-3583.63244673,0.00015,2]
[392574176,1761683432463,-5770.06220623,0.00015,2]
[392574358,1761683434147,-316.0,0.00015,2]
[392574592,1761683436416,-184.0,0.00015,2]
[392574765,1761683438044,-624.42916511,0.00015,2]
[392574772,1761683438094,-1175.376,0.00015,2]
[392574778,1761683438153,-782.54342496,0.00015,2]
[392574784,1761683438211,-10155.6,0.00015,2]
[392574786,1761683438224,-3110.88,0.00015,2]
[392574789,1761683438237,-4195.42826722,0.00015,2]
[392574793,1761683438270,-21759.63582398,0.00015,2]
[392574795,1761683438283,-5405.99982047,0.00015,2]
[392574797,1761683438294,-459.15737819,0.00015,2]
[392574799,1761683438304,-1328.27212089,0.00015,2]
[392574801,1761683438316,-300.97597486,0.00015,2]
[392574803,1761683438327,-1375.38584284,0.00015,2]
[392574984,1761683440238,-1051.88761874,0.00015,2]
[392574987,1761683440249,-839.68909439,0.00015,2]
[392574989,1761683440260,-548.3835945,0.00015,2]
[392575089,1761683441252,-306.1172,0.00015,2]
[392575092,1761683441263,-16900.5,0.00015,2]
[392575094,1761683441278,-6224.00000064,0.00015,2]
[392575098,1761683441300,-489.31712962,0.00015,2]
[392575447,1761683444462,-398.0735886,0.00015,2]
[392575449,1761683444473,-282.55366061,0.00015,2]
[392575456,1761683444523,-56440.0,0.00015,2]
[392575475,1761683444697,-56522.59999999,0.00015,2]
[392575478,1761683444710,-474.18,0.00015,2]
[392575480,1761683444721,-310.57200057,0.00015,2]
[392575482,1761683444732,-286.29663018,0.00015,2]
[392575651,1761683446231,-619751.47431481,0.00015,2]
[392575659,1761683446291,-12960.8503591,0.00015,2]
[392575661,1761683446303,-1658.62338168,0.00015,2]
[392575666,1761683446348,-1126.5,0.00015,2]
[392575679,1761683446458,-2268.11790978,0.00015,2]
[392575681,1761683446470,-1647.93883087,0.00015,2]
[392575683,1761683446481,-2823.38313125,0.00015,2]
[392575687,1761683446515,-324.01250187,0.00015,2]
[392576359,1761683455443,-318.17235316,0.00014925,2]
[392576360,1761683458088,-250.69225184,0.00014925,2]
[392576361,1761683458112,-49.30774816,0.00015,2]
[392576362,1761683459076,-30000.0,0.00015,2]
[392576363,1761683459743,-1092.0,0.00015,2]
[392576365,1761683462623,-300.0,0.00014999,2]
[392576366,1761683462653,-399.08,0.00015,2]
[392576367,1761683464072,-250.0,0.00015,2]
[392576368,1761683466930,-152.56,0.00015,2]
[392576369,1761683484143,-185.38963692,0.00014999,2]
[392576370,1761683484165,-100.42036308,0.00014999,2]
[392576371,1761683487266,-399.57963692,0.00014999,2]
[392576372,1761683487294,-299.50036308,0.00014999,2]
[392576373,1761683489474,-200.49963692,0.00014999,2]
[392576374,1761683489496,-6.13393347,0.00014999,2]
[392576383,1761683492086,-250.0,0.00014999,2]
[392576387,1761683492415,1280.33871374,0.00014999,5]
[392576399,1761683494304,-250.0,0.000147,2]
[392576400,1761683494619,1280.33871374,0.00014999,5]
[392576421,1761683496123,-204.93288246,0.000147,2]
[392576430,1761683498027,-166.66,0.000147,2]
[392576444,1761683514621,-536.0224002,0.000147,2]
[392576445,1761683516412,-171.28,0.000147,2]
[392576446,1761683518934,-262.96477597,0.000147,2]
[392576447,1761683520395,-242.57512913,0.000147,2]
[392576448,1761683522489,-91.86981224,0.000147,2]
[392576449,1761683522511,-212.73947532,0.00014899,2]
[392576452,1761683525030,-87.26052468,0.00014899,2]
[392576453,1761683525055,-412.73947532,0.000149,2]
[392576457,1761683527293,-500.0,0.000149,2]
[392576460,1761683544636,-190.52,0.000149,2]
[392576461,1761683547838,-271.59288246,0.000149,2]
[392576462,1761683551779,-713.29711754,0.000149,2]
[392576463,1761683553839,-152.56,0.00014899,2]
[392576464,1761683556750,-285.81,0.00014899,2]
[392576465,1761683559159,-591.0,0.00014898,2]
[392576466,1761683559187,-61.63,0.00014899,2]
[392576467,1761683559213,-46.45,0.00014899,2]
[392576468,1761683562291,-453.55,0.00014899,2]
[392576469,1761683562316,-5.66625986,0.00014899,2]
[392576470,1761683564745,-272.87895329,0.00014899,2]
[392576471,1761683564768,-0.19783034,0.00014899,2]
[392576472,1761683567572,-259.23,0.00014899,2]
[392576473,1761683572143,-240.57216966,0.00014899,2]
[392576474,1761683572167,-66.85791523,0.00014899,2]
[392576477,1761683578653,999.0,0.00018994,3]
[392576479,1761683589647,-300.0,0.00014898,2]
[392576480,1761683589676,-86.74080036,0.00014899,2]
[392576481,1761683591688,-314.65945662,0.00014899,2]
[392576482,1761683593905,-414.36047135,0.00014899,2]
[392576483,1761683596556,-185.75706546,0.00014899,2]
[392576484,1761683598067,-85.22300657,0.00014899,2]
[392576485,1761683598101,-346.40128441,0.00014899,2]
[392576486,1761683598135,-43.94821393,0.00014899,2]
[392576487,1761683599865,227.0,0.000315,120]
[392576488,1761683599913,-283.16109466,0.00014899,2]
[392576489,1761683601433,-172.89069141,0.00014899,2]
[392576490,1761683601458,-21.95405825,0.00014899,2]
[392576491,1761683619042,-224.20570329,0.00014899,2]
[392576492,1761683621301,-253.84023846,0.00014899,2]
[392576493,1761683621326,-8.14976154,0.00014899,2]
[392576494,1761683624038,-261.14856647,0.00014899,2]
[392576495,1761683626157,-153.23263229,0.00014899,2]
[392576497,1761683630924,-77.4690397,0.00014899,2]
[392576498,1761683630949,-233.63470094,0.00014899,2]
[392576499,1761683633084,-226.86323101,0.00014899,2]
[392576500,1761683649060,-39.50206805,0.00014899,2]
[392576501,1761683649082,-150.0,0.00014899,2]
[392576502,1761683649105,-92.90673322,0.000149,2]
[392576503,1761683652175,-263.17680972,0.000149,2]
[392576504,1761683654925,-191.08,0.00014825,2]
[392576505,1761683656569,-270.34297502,0.00014825,2]
[392576506,1761683660243,-32.38289698,0.00014825,2]
[392576507,1761683660270,-281.24708143,0.000149,2]
[392576508,1761683663021,-165.8752723,0.000149,2]
[392576510,1761683673419,1177.65810365,0.00014999,5]
[392576511,1761683679084,-172.48919676,0.00014899,2]
[392576512,1761683679110,-86.93016911,0.00014899,2]
[392576513,1761683681502,-256.16478905,0.00014899,2]
[392576514,1761683684331,-156.90504184,0.00014899,2]
[392576515,1761683684355,-33.91495816,0.00014899,2]
[392576516,1761683686538,-206.18860567,0.00014899,2]
[392576517,1761683686559,-113.07085281,0.00014899,2]
[392576518,1761683689356,-166.57317667,0.00014899,2]
[392576519,1761683693370,-27.34311566,0.00014899,2]
[392576520,1761683693392,-297.82821233,0.000149,2]
[392576521,1761683710123,-203.35496338,0.00014899,2]
[392576522,1761683713984,-193.79490688,0.00014899,2]
[392576524,1761683716702,-270.51755977,0.00014899,2]
[392576525,1761683720155,-191.25136897,0.00014899,2]
[392576526,1761683722238,684.0,0.000315,120]
[392576527,1761683722304,-202.24108287,0.00014899,2]
[392576528,1761683739677,-30.84011813,0.00014899,2]
[392576529,1761683739702,-162.85116113,0.00014899,2]
[392576530,1761683741823,-137.14883887,0.00014899,2]
[392576531,1761683741846,-212.93952365,0.000149,2]
[392576532,1761683743489,-412.92623101,0.000149,2]
[392576533,1761683751169,-251.89,0.000149,2]
[392576534,1761683753698,-249.78420542,0.000149,2]
[392576535,1761683756759,-250.0,0.000149,2]
[392576536,1761683760062,-167.49853014,0.000149,2]
[392576537,1761683762144,-150.0,0.00014899,2]
[392576538,1761683762178,-184.15191071,0.000149,2]
[392576539,1761683766251,-279.24059853,0.000149,2]
[392576540,1761683767933,-153.8132035,0.000149,2]
[392576541,1761683784062,-174.05809045,0.000149,2]
[392576542,1761683786393,-161.31795755,0.000149,2]
[392576543,1761683786416,-14.48706125,0.000149,2]
[392576544,1761683789021,-408.54864507,0.000149,2]
[392576545,1761683789044,-45.53161336,0.000149,2]
[392576546,1761683790604,-156.51,0.000149,2]
[392576547,1761683792262,-338.76309633,0.000148,2]
[392576548,1761683794019,-164.56674478,0.000148,2]
[392576549,1761683796760,151.0,0.0002,7]
[392576550,1761683797339,-192.29511728,0.000148,2]
[392576551,1761683797364,-163.54448819,0.000149,2]
[392576552,1761683799068,-8.04591483,0.000149,2]
[392576553,1761683799093,-275.92492817,0.000149,2]
[392576554,1761683801744,-331.82457427,0.000149,2]
[392576555,1761683804488,-168.27315177,0.000149,2]
[392576556,1761683807270,-165.17624386,0.000149,2]
[392576557,1761683808642,-228.17164035,0.000149,2]
[392576558,1761683810921,-242.65462908,0.000149,2]
[392576559,1761683815335,-156.4684924,0.000149,2]
[392576560,1761683817978,-198.46971435,0.000149,2]
[392576561,1761683820291,-337.04751096,0.000149,2]
[392576562,1761683822229,-309.02944966,0.000149,2]
[392576563,1761683823541,-215.78852907,0.000149,2]
[392576564,1761683825627,-204.23400568,0.000149,2]
[392576565,1761683828554,-159.78590693,0.000149,2]
[392576566,1761683834431,-294.50059951,0.000149,2]
[392576567,1761683837327,-157.08690379,0.000149,2]
[392576568,1761683839343,-413.9338795,0.000149,2]
[392576569,1761683840982,150.0,0.00017249,5]
[392576570,1761683842123,-382.38501788,0.000149,2]
[392576571,1761683842169,151.0,0.00019744,7]
[392576572,1761683844462,151.0,0.00019744,7]
[392576574,1761683859114,-216.55287849,0.00014893,2]
[392576575,1761683861306,-302.1287721,0.00014893,2]
[392576576,1761683864683,-273.13676899,0.00014893,2]
[392576577,1761683866273,-180.74054152,0.00014893,2]
[392576578,1761683868522,-242.96350348,0.00014893,2]
[392576579,1761683870824,-165.7930362,0.00014893,2]
[392576582,1761683873062,-261.57884123,0.00014893,2]
[392576583,1761683889042,-152.61577799,0.00014892,2]
[392576584,1761683892904,-285.90082933,0.00014892,2]
[392576585,1761683897581,-269.2122126,0.00014892,2]
[392576586,1761683901546,-297.3739501,0.00014892,2]
[392576587,1761683919111,-415.49253283,0.00014891,2]
[392576588,1761683921042,-59.90137974,0.00014891,2]
[392576589,1761683921079,-137.27525267,0.00014892,2]
[392576590,1761683924522,-313.12875029,0.00014892,2]
[392576591,1761683926671,-228.4215338,0.00014892,2]
[392576592,1761683928869,-178.83115339,0.00014892,2]
[392576593,1761683932680,-206.66722051,0.00014892,2]
[392576594,1761683949086,-393.45672806,0.00014892,2]
[392576595,1761683953021,-217.27472627,0.00014892,2]
[392576596,1761683957194,-166.66666668,0.00014892,2]
[392576597,1761683958855,-176.76762604,0.00014892,2]
[392576598,1761683979037,-283.14637163,0.00014892,2]
[392576599,1761683981480,-306.20509312,0.00014892,2]
[392576600,1761683983409,-243.11036039,0.00014892,2]
[392576601,1761683986160,-278.11259062,0.00014892,2]
[392576602,1761683989996,-250.0432859,0.00014892,2]
[392576603,1761683992069,-230.23014113,0.00014892,2]
[392576604,1761683993704,-188.02723125,0.00014892,2]
[392576605,1761683997065,-222.86383252,0.00014892,2]
[392576606,1761683998561,-157.04511741,0.00014892,2]
[392576607,1761684001239,150.0,0.00017248,5]
[392576608,1761684001417,-178.09406547,0.00014891,2]
[392576609,1761684005112,-158.84141481,0.00014891,2]
[392576610,1761684007305,-332.17040398,0.00014891,2]
[392576611,1761684022957,991.0,0.000315,120]
[392576612,1761684024236,-244.08025378,0.00014891,2]
[392576613,1761684029908,-286.81386196,0.00014891,2]
[392576614,1761684029932,-61.6455318,0.00014892,2]
[392576615,1761684034666,-465.9948249,0.00014892,2]
[392576616,1761684037826,-154.38627395,0.00014892,2]
[392576617,1761684054691,-169.43872696,0.00014892,2]
[392576618,1761684056297,-187.61285694,0.00014892,2]
[392576619,1761684058482,-569.07393618,0.00014892,2]
[392576620,1761684060866,-277.02333261,0.00014892,2]
[392576621,1761684063153,-230.73462432,0.00014892,2]
[392576622,1761684145874,-246.0,0.00014891,2]
[392576623,1761684145993,-54.0,0.00014891,2]
[392576624,1761684146020,-110.0,0.00014892,2]
[392576625,1761684186310,-892.45094745,0.00014602,2]
[392576626,1761684186336,-216.9840126,0.00014613,2]
[392576627,1761684186365,-1362.40815436,0.00014892,2]
[392576628,1761684245778,-4943.68622882,0.00014892,2]
[392576629,1761684245834,-5168.94131354,0.00014892,2]
[392576630,1761684261887,301.67,0.00013699,2]
[392576632,1761684310421,150.0,0.00013488,2]
[392576633,1761684310549,150.0,0.00013488,2]
[392576634,1761684310647,150.0,0.00014487,2]
[392576635,1761684310701,150.0,0.00013987,2]
[392576636,1761684311094,150.0,0.00013567,2]
[392576637,1761684311139,150.0,0.00013645,2]
[392576638,1761684311198,150.0,0.00013882,2]
[392576639,1761684311270,150.0,0.00013961,2]
[392576640,1761684311322,150.0,0.00013803,2]
[392576641,1761684311386,150.0,0.0001404,2]
[392576642,1761684311459,150.0,0.00013724,2]
[392576643,1761684311501,150.0,0.00014276,2]
[392576644,1761684311559,150.0,0.00014119,2]
[392576645,1761684311822,150.0,0.00014355,2]
[392576646,1761684311877,150.0,0.00014434,2]
[392576647,1761684311961,150.0,0.00014198,2]
[392576648,1761684312065,150.0,0.00013488,2]
[392576649,1761684316641,150.0,0.00013488,2]
[392576650,1761684316715,150.0,0.00013862,2]
[392576651,1761684316782,150.0,0.00014237,2]
[392576652,1761684316997,150.0,0.00013488,2]
[392576653,1761684317062,150.0,0.00013862,2]
[392576654,1761684317106,150.0,0.00014237,2]
[392576655,1761684318654,152.28330754,0.00013488,2]
[392576656,1761684321494,150.0,0.00013488,2]
[392576657,1761684321539,150.0,0.00014237,2]
[392576658,1761684327035,150.0,0.00013488,2]
[392576659,1761684327075,151.16683616,0.00013488,2]
[392576660,1761684327187,150.0,0.00013488,2]
[392576661,1761684331460,239.83037545,0.00013488,2]
[392576662,1761684331502,150.0,0.00013488,2]
[392576663,1761684333594,-150.0,0.00014513,2]
[392576664,1761684333621,-150.0,0.00014592,2]
[392576665,1761684333647,-150.0,0.00014612,2]
[392576666,1761684333673,-150.0,0.00014612,2]
[392576667,1761684333700,-150.0,0.00014671,2]
[392576668,1761684333726,-150.0,0.0001475,2]
[392576669,1761684333751,-150.0,0.00014829,2]
[392576670,1761684333777,-4943.68622882,0.00014892,2]
[392576671,1761684333803,-1934.65010189,0.00014893,2]
[392576672,1761684333828,-480.0,0.00014898,2]
[392576673,1761684333855,-1541.044,0.00014899,2]
[392576674,1761684334033,-101.23933858,0.00014899,2]
[392576675,1761684334077,150.0,0.00013488,2]
[392576676,1761684334114,150.0,0.00013987,2]
[392576677,1761684334177,150.0,0.00014487,2]
[392576681,1761684413793,-150.0,0.00014899,2]
[392576682,1761684413821,-500.0,0.000149,2]
[392576683,1761684413848,-500.0,0.000149,2]
[392576684,1761684413876,-500.0,0.000149,2]
[392576685,1761684413908,-500.0,0.000149,2]
[392576686,1761684413936,-500.0,0.000149,2]
[392576687,1761684413963,-500.0,0.000149,2]
[392576688,1761684413991,-500.0,0.000149,2]
[392576689,1761684414022,-500.0,0.000149,2]
[392576690,1761684414048,-500.0,0.000149,2]
[392576691,1761684414075,-200.0,0.000149,2]
[392576692,1761684414535,-300.0,0.000149,2]
[392576693,1761684440316,196.0,0.000315,120]